[Event "*** Titled Tuesday Blitz"]
[Site "Chess.com"]
[Date "2021.04.06"]
[Round "1"]
[White "I_Enchev"]
[Black "mamonika"]
[Result "1-0"]
[WhiteElo "2492"]
[BlackElo "2043"]
[TimeControl "180+1"]
[EndTime "10:06:47 PDT"]
[Termination "I_Enchev won by checkmate"]

1. d4 {[%clk 0:03:00.9]} 1... d5 {[%clk 0:02:59.6]} 2. c4 {[%clk 0:03:00.3]}
2... e6 {[%clk 0:02:58.9]} 3. Nc3 {[%clk 0:03:00.3]} 3... Nf6 {[%clk 0:02:58.5]}
4. cxd5 {[%clk 0:03:00.5]} 4... exd5 {[%clk 0:02:58.4]} 5. Bg5 {[%clk
0:03:00.2]} 5... c6 {[%clk 0:02:57.8]} 6. e3 {[%clk 0:03:00.1]} 6... Be7 {[%clk
0:02:53.5]} 7. Bd3 {[%clk 0:02:59.3]} 7... Nbd7 {[%clk 0:02:53.3]} 8. Nf3 {[%clk
0:02:52.1]} 8... O-O {[%clk 0:02:52.7]} 9. Qc2 {[%clk 0:02:51.3]} 9... Re8
{[%clk 0:02:51.8]} 10. O-O {[%clk 0:02:50.5]} 10... Nf8 {[%clk 0:02:50.2]} 11.
Rab1 {[%clk 0:02:49.8]} 11... Ng6 {[%clk 0:02:40.3]} 12. b4 {[%clk 0:02:45.1]}
12... Bd6 {[%clk 0:02:40]} 13. b5 {[%clk 0:02:38]} 13... h6 {[%clk 0:02:37.5]}
14. Bxf6 {[%clk 0:02:29.3]} 14... Qxf6 {[%clk 0:02:37.5]} 15. bxc6 {[%clk
0:02:29.3]} 15... bxc6 {[%clk 0:02:38.4]} 16. Qa4 {[%clk 0:02:18.2]} 16... Bg4
{[%clk 0:02:33.5]} 17. Be2 {[%clk 0:02:15.9]} 17... Bxf3 {[%clk 0:02:27.3]} 18.
Bxf3 {[%clk 0:02:16.8]} 18... Nh4 {[%clk 0:02:27.8]} 19. Be2 {[%clk 0:02:14.2]}
19... Qg5 {[%clk 0:02:17.8]} 20. g3 {[%clk 0:02:12.4]} 20... Nf5 {[%clk
0:02:17.9]} 21. Kh1 {[%clk 0:01:42.4]} 21... Rxe3 {[%clk 0:02:00.2]} 22. fxe3
{[%clk 0:01:31.3]} 22... Nxg3+ {[%clk 0:02:00.3]} 23. hxg3 {[%clk 0:01:31]}
23... Qxg3 {[%clk 0:02:00.3]} 24. Rf4 {[%clk 0:01:29.5]} 24... Qh3+ {[%clk
0:01:51.1]} 25. Kg1 {[%clk 0:01:27.3]} 25... Bxf4 {[%clk 0:01:50.1]} 26. exf4
{[%clk 0:01:25.5]} 26... Qe3+ {[%clk 0:01:48]} 27. Kf1 {[%clk 0:01:23.3]} 27...
Qxc3 {[%clk 0:01:47.6]} 28. Rd1 {[%clk 0:01:14.9]} 28... Re8 {[%clk 0:01:42.3]}
29. Qb3 {[%clk 0:01:11.5]} 29... Qa5 {[%clk 0:01:38.1]} 30. Bf3 {[%clk
0:01:06.7]} 30... Qc7 {[%clk 0:01:35.7]} 31. Re1 {[%clk 0:01:00]} 31... Rb8
{[%clk 0:01:30.4]} 32. Qe3 {[%clk 0:00:58.4]} 32... Rb2 {[%clk 0:01:25.3]} 33.
Re2 {[%clk 0:00:58.4]} 33... Rb1+ {[%clk 0:01:25.3]} 34. Kg2 {[%clk 0:00:57.3]}
34... Qb7 {[%clk 0:01:12.2]} 35. Bg4 {[%clk 0:00:50.1]} 35... g6 {[%clk
0:00:36.1]} 36. f5 {[%clk 0:00:40.1]} 36... g5 {[%clk 0:00:24.1]} 37. Qe8+
{[%clk 0:00:34.5]} 37... Kg7 {[%clk 0:00:24.2]} 38. f6+ {[%clk 0:00:33.3]} 38...
Kh7 {[%clk 0:00:18.3]} 39. Bf5# {[%clk 0:00:32.6]} 1-0

[Event "*** Titled Tuesday Blitz"]
[Site "Chess.com"]
[Date "2021.04.06"]
[Round "1"]
[White "Redbandit87"]
[Black "anon6121824"]
[Result "0-1"]
[WhiteElo "2420"]
[BlackElo "2786"]
[TimeControl "180+1"]
[EndTime "10:06:48 PDT"]
[Termination "anon6121824 won by resignation"]

1. d4 {[%clk 0:02:58.2]} 1... Nf6 {[%clk 0:02:59.7]} 2. Bf4 {[%clk 0:02:55.5]}
2... b6 {[%clk 0:02:58.9]} 3. e3 {[%clk 0:02:53.9]} 3... Bb7 {[%clk 0:02:59.1]}
4. Nf3 {[%clk 0:02:54.3]} 4... e6 {[%clk 0:02:58.2]} 5. h3 {[%clk 0:02:51.8]}
5... Be7 {[%clk 0:02:57.9]} 6. Bd3 {[%clk 0:02:50.1]} 6... O-O {[%clk
0:02:56.6]} 7. O-O {[%clk 0:02:50.2]} 7... d5 {[%clk 0:02:56]} 8. Nbd2 {[%clk
0:02:48.9]} 8... Nbd7 {[%clk 0:02:55.6]} 9. Ne5 {[%clk 0:02:46.2]} 9... Nxe5
{[%clk 0:02:55]} 10. Bxe5 {[%clk 0:02:46]} 10... Nd7 {[%clk 0:02:54.5]} 11. Bg3
{[%clk 0:02:45.4]} 11... f5 {[%clk 0:02:53.2]} 12. c4 {[%clk 0:02:40.5]} 12...
c6 {[%clk 0:02:51.9]} 13. Rc1 {[%clk 0:02:39.3]} 13... g6 {[%clk 0:02:46.7]} 14.
a3 {[%clk 0:02:34.9]} 14... Rc8 {[%clk 0:02:44.7]} 15. Qe2 {[%clk 0:02:33.2]}
15... Qe8 {[%clk 0:02:36.7]} 16. Rc2 {[%clk 0:02:29.3]} 16... Qf7 {[%clk
0:02:28.2]} 17. Rfc1 {[%clk 0:02:26.2]} 17... g5 {[%clk 0:02:24.5]} 18. cxd5
{[%clk 0:02:20.9]} 18... exd5 {[%clk 0:02:23.5]} 19. f4 {[%clk 0:02:05.1]} 19...
Rce8 {[%clk 0:02:16.9]} 20. Nf3 {[%clk 0:02:00.6]} 20... h6 {[%clk 0:01:49.8]}
21. Ne5 {[%clk 0:01:56.5]} 21... Nxe5 {[%clk 0:01:46.4]} 22. dxe5 {[%clk
0:01:51.9]} 22... Qe6 {[%clk 0:01:46.5]} 23. Kh2 {[%clk 0:01:50]} 23... Kh7
{[%clk 0:01:41.6]} 24. b4 {[%clk 0:01:48.9]} 24... Rf7 {[%clk 0:01:28.9]} 25.
Bf2 {[%clk 0:01:46.2]} 25... Kh8 {[%clk 0:01:24.2]} 26. Rc3 {[%clk 0:01:42.4]}
26... Rg8 {[%clk 0:01:21.5]} 27. Qh5 {[%clk 0:01:09.9]} 27... c5 {[%clk
0:01:14.7]} 28. bxc5 {[%clk 0:01:06.3]} 28... Bxc5 {[%clk 0:01:15.6]} 29. g3
{[%clk 0:00:56.8]} 29... gxf4 {[%clk 0:01:04.4]} 30. Rxc5 {[%clk 0:00:45.8]}
30... fxg3+ {[%clk 0:00:52.4]} 31. Bxg3 {[%clk 0:00:42.2]} 31... bxc5 {[%clk
0:00:53.3]} 32. Bf4 {[%clk 0:00:40.4]} 32... d4 {[%clk 0:00:50.3]} 33. Rxc5
{[%clk 0:00:36.1]} 33... Rg2+ {[%clk 0:00:49.1]} 34. Kh1 {[%clk 0:00:34.7]}
34... Rfg7 {[%clk 0:00:33.1]} 35. Rc8+ {[%clk 0:00:27.5]} 35... Qxc8 {[%clk
0:00:28.7]} 36. Qxh6+ {[%clk 0:00:25.7]} 36... Kg8 {[%clk 0:00:28.1]} 0-1

[Event "*** Titled Tuesday Blitz"]
[Site "Chess.com"]
[Date "2021.04.06"]
[Round "1"]
[White "HemantSharma"]
[Black "dhaessel"]
[Result "1-0"]
[WhiteElo "2503"]
[BlackElo "2063"]
[TimeControl "180+1"]
[EndTime "10:06:49 PDT"]
[Termination "HemantSharma won on time"]

1. e4 {[%clk 0:03:00.9]} 1... e5 {[%clk 0:02:55.3]} 2. Nf3 {[%clk 0:03:00.6]}
2... Nc6 {[%clk 0:02:53.3]} 3. Bb5 {[%clk 0:03:00]} 3... Nf6 {[%clk 0:02:52.8]}
4. O-O {[%clk 0:02:58]} 4... Nxe4 {[%clk 0:02:51.9]} 5. Re1 {[%clk 0:02:58.4]}
5... Nd6 {[%clk 0:02:50.7]} 6. Bxc6 {[%clk 0:02:58.9]} 6... dxc6 {[%clk
0:02:49.4]} 7. Nxe5 {[%clk 0:02:59.8]} 7... Be7 {[%clk 0:02:46.7]} 8. Qe2 {[%clk
0:03:00]} 8... Nf5 {[%clk 0:02:18.7]} 9. c3 {[%clk 0:02:58.7]} 9... O-O {[%clk
0:02:07.1]} 10. d4 {[%clk 0:02:58.8]} 10... Be6 {[%clk 0:01:56.4]} 11. Nd2
{[%clk 0:02:55.7]} 11... c5 {[%clk 0:01:51.8]} 12. dxc5 {[%clk 0:02:52.9]} 12...
Bxc5 {[%clk 0:01:49.1]} 13. Ne4 {[%clk 0:02:51.9]} 13... Bb6 {[%clk 0:01:40]}
14. Bg5 {[%clk 0:02:43]} 14... Qd5 {[%clk 0:01:14.3]} 15. Nf6+ {[%clk
0:02:04.6]} 15... gxf6 {[%clk 0:01:12.5]} 16. Bxf6 {[%clk 0:02:05.5]} 16... Rfe8
{[%clk 0:00:53.7]} 17. Qg4+ {[%clk 0:01:53]} 17... Kf8 {[%clk 0:00:52]} 18. Qh5
{[%clk 0:01:47.6]} 18... Qd2 {[%clk 0:00:20.7]} 19. Qxh7 {[%clk 0:01:06.7]}
19... Qxf2+ {[%clk 0:00:17.8]} 20. Kh1 {[%clk 0:01:05.9]} 20... Ng3+ {[%clk
0:00:17.8]} 21. hxg3 {[%clk 0:01:05.1]} 21... Qxf6 {[%clk 0:00:17.8]} 22. Rad1
{[%clk 0:00:39.8]} 22... Qg7 {[%clk 0:00:16.5]} 23. Qh5 {[%clk 0:00:38.3]} 23...
Kg8 {[%clk 0:00:14.5]} 24. Re4 {[%clk 0:00:37.7]} 24... Qh7 {[%clk 0:00:12.3]}
25. Qxh7+ {[%clk 0:00:37.8]} 25... Kxh7 {[%clk 0:00:12.1]} 26. Rf1 {[%clk
0:00:35.6]} 26... Re7 {[%clk 0:00:09.2]} 27. Rh4+ {[%clk 0:00:31.8]} 27... Kg7
{[%clk 0:00:07.7]} 28. Kh2 {[%clk 0:00:32.7]} 28... Rh8 {[%clk 0:00:07]} 29. Nf3
{[%clk 0:00:30.4]} 29... Rxh4+ {[%clk 0:00:04.7]} 30. gxh4 {[%clk 0:00:31.3]}
30... Bxa2 {[%clk 0:00:02.7]} 31. Ng5 {[%clk 0:00:31.3]} 31... Bc4 {[%clk
0:00:02]} 32. Rf4 {[%clk 0:00:30.7]} 1-0

[Event "*** Titled Tuesday Blitz"]
[Site "Chess.com"]
[Date "2021.04.06"]
[Round "1"]
[White "Vesper2018"]
[Black "parintele_chess"]
[Result "1-0"]
[WhiteElo "2562"]
[BlackElo "2242"]
[TimeControl "180+1"]
[EndTime "10:06:51 PDT"]
[Termination "Vesper2018 won by checkmate"]

1. e4 {[%clk 0:03:00.9]} 1... c5 {[%clk 0:02:54.1]} 2. Nc3 {[%clk 0:02:59.8]}
2... Nc6 {[%clk 0:02:49.8]} 3. Bb5 {[%clk 0:02:58.6]} 3... e6 {[%clk 0:02:47.9]}
4. Bxc6 {[%clk 0:02:46.2]} 4... bxc6 {[%clk 0:02:46.9]} 5. d3 {[%clk 0:02:44.3]}
5... d6 {[%clk 0:02:45.5]} 6. f4 {[%clk 0:02:40]} 6... g6 {[%clk 0:02:37.5]} 7.
Nf3 {[%clk 0:02:39.4]} 7... Bg7 {[%clk 0:02:36.9]} 8. O-O {[%clk 0:02:39.3]}
8... Ne7 {[%clk 0:02:36.6]} 9. Rb1 {[%clk 0:02:20.4]} 9... O-O {[%clk 0:02:19]}
10. Be3 {[%clk 0:02:20.1]} 10... f5 {[%clk 0:02:16.1]} 11. e5 {[%clk 0:02:12.3]}
11... Nd5 {[%clk 0:02:12.1]} 12. Nxd5 {[%clk 0:01:51.2]} 12... exd5 {[%clk
0:02:11.3]} 13. exd6 {[%clk 0:01:44.3]} 13... Qxd6 {[%clk 0:02:11.9]} 14. Ne5
{[%clk 0:01:37]} 14... Re8 {[%clk 0:01:50.3]} 15. Qd2 {[%clk 0:01:24]} 15... d4
{[%clk 0:01:32.7]} 16. Bf2 {[%clk 0:01:23.5]} 16... Bxe5 {[%clk 0:01:17.6]} 17.
fxe5 {[%clk 0:01:22.9]} 17... Qe6 {[%clk 0:01:10.9]} 18. Bh4 {[%clk 0:01:19.1]}
18... Ba6 {[%clk 0:01:04.1]} 19. Bf6 {[%clk 0:01:13.8]} 19... c4 {[%clk
0:00:58.1]} 20. Qh6 {[%clk 0:00:41.1]} 20... Qf7 {[%clk 0:00:52.7]} 21. Rf3
{[%clk 0:00:38.8]} 21... Re6 {[%clk 0:00:46.6]} 22. h4 {[%clk 0:00:36.1]} 22...
Rxf6 {[%clk 0:00:41.4]} 23. exf6 {[%clk 0:00:36.1]} 23... Qxf6 {[%clk
0:00:42.3]} 24. Re1 {[%clk 0:00:35]} 24... c5 {[%clk 0:00:34.7]} 25. h5 {[%clk
0:00:32.8]} 25... Bb7 {[%clk 0:00:18.2]} 26. Rf4 {[%clk 0:00:20.3]} 26... Rf8
{[%clk 0:00:14.2]} 27. hxg6 {[%clk 0:00:19.5]} 27... hxg6 {[%clk 0:00:15.1]} 28.
Rh4 {[%clk 0:00:19.9]} 28... Qc6 {[%clk 0:00:14.2]} 29. Qh7# {[%clk 0:00:18.5]}
1-0

[Event "*** Titled Tuesday Blitz"]
[Site "Chess.com"]
[Date "2021.04.06"]
[Round "1"]
[White "mary-sanna"]
[Black "Lion-Al-Messi"]
[Result "0-1"]
[WhiteElo "2104"]
[BlackElo "2505"]
[TimeControl "180+1"]
[EndTime "10:06:52 PDT"]
[Termination "Lion-Al-Messi won by checkmate"]

1. d4 {[%clk 0:03:00.9]} 1... d5 {[%clk 0:02:59]} 2. Bf4 {[%clk 0:03:00.5]} 2...
Nf6 {[%clk 0:02:58.7]} 3. e3 {[%clk 0:03:00]} 3... c5 {[%clk 0:02:59]} 4. c3
{[%clk 0:02:59.8]} 4... Nc6 {[%clk 0:02:59.3]} 5. Nf3 {[%clk 0:02:59.2]} 5...
Qb6 {[%clk 0:02:59]} 6. Qb3 {[%clk 0:02:59.1]} 6... c4 {[%clk 0:02:58.8]} 7.
Qxb6 {[%clk 0:02:59.2]} 7... axb6 {[%clk 0:02:59.7]} 8. Na3 {[%clk 0:02:59.2]}
8... e5 {[%clk 0:02:57]} 9. Nb5 {[%clk 0:02:52.2]} 9... exf4 {[%clk 0:02:56]}
10. Nc7+ {[%clk 0:02:51.8]} 10... Kd8 {[%clk 0:02:54.2]} 11. Nxa8 {[%clk
0:02:52.1]} 11... fxe3 {[%clk 0:02:48.8]} 12. Nxb6 {[%clk 0:02:47.7]} 12...
exf2+ {[%clk 0:02:49.7]} 13. Kxf2 {[%clk 0:02:47.7]} 13... Ne4+ {[%clk
0:02:50.3]} 14. Kg1 {[%clk 0:02:43.7]} 14... Be6 {[%clk 0:02:50]} 15. g3 {[%clk
0:02:20.5]} 15... Bd6 {[%clk 0:02:45]} 16. Rd1 {[%clk 0:01:58.9]} 16... Kc7
{[%clk 0:02:44.3]} 17. Na4 {[%clk 0:01:58.3]} 17... b6 {[%clk 0:02:44.6]} 18.
Nd2 {[%clk 0:01:51.6]} 18... f5 {[%clk 0:02:35.4]} 19. Nxe4 {[%clk 0:01:47.5]}
19... fxe4 {[%clk 0:02:36.3]} 20. b3 {[%clk 0:01:45.4]} 20... Ra8 {[%clk
0:02:30.1]} 21. h4 {[%clk 0:01:26.9]} 21... Bxg3 {[%clk 0:02:13.7]} 22. Bh3
{[%clk 0:01:21.6]} 22... Bf7 {[%clk 0:02:13.4]} 23. Kg2 {[%clk 0:01:16.3]} 23...
Bxh4 {[%clk 0:02:07.2]} 24. Bf5 {[%clk 0:01:06.6]} 24... Bf6 {[%clk 0:02:06.2]}
25. Rxh7 {[%clk 0:00:50.6]} 25... b5 {[%clk 0:02:02.1]} 26. Nc5 {[%clk
0:00:49.5]} 26... Rxa2+ {[%clk 0:02:01.3]} 27. Kg3 {[%clk 0:00:46.8]} 27... Rc2
{[%clk 0:01:47.3]} 28. bxc4 {[%clk 0:00:45.6]} 28... Rxc3+ {[%clk 0:01:39.8]}
29. Kg2 {[%clk 0:00:46]} 29... bxc4 {[%clk 0:01:31.9]} 30. Rb1 {[%clk
0:00:44.7]} 30... Rc2+ {[%clk 0:01:26.3]} 31. Kg3 {[%clk 0:00:44.2]} 31... Nxd4
{[%clk 0:01:16.7]} 32. Na6+ {[%clk 0:00:29.5]} 32... Kd6 {[%clk 0:01:11.6]} 33.
Rb6+ {[%clk 0:00:23.5]} 33... Ke5 {[%clk 0:01:09.7]} 34. Bg4 {[%clk 0:00:21.4]}
34... Ne2+ {[%clk 0:00:47.9]} 35. Kf2 {[%clk 0:00:19.3]} 35... Nf4+ {[%clk
0:00:45.3]} 36. Kf1 {[%clk 0:00:18.1]} 36... e3 {[%clk 0:00:39.3]} 37. Nc5
{[%clk 0:00:15]} 37... Rc1+ {[%clk 0:00:34.2]} 38. Bd1 {[%clk 0:00:11.7]} 38...
Rxd1# {[%clk 0:00:34.2]} 0-1

[Event "*** Titled Tuesday Blitz"]
[Site "Chess.com"]
[Date "2021.04.06"]
[Round "1"]
[White "bilelou"]
[Black "VladimirBugayev"]
[Result "1/2-1/2"]
[WhiteElo "2555"]
[BlackElo "2257"]
[TimeControl "180+1"]
[EndTime "10:06:53 PDT"]
[Termination "Game drawn by repetition"]

1. e4 {[%clk 0:02:55.1]} 1... c6 {[%clk 0:02:56.8]} 2. d3 {[%clk 0:02:52.8]}
2... d5 {[%clk 0:02:55.1]} 3. Nf3 {[%clk 0:02:52.5]} 3... dxe4 {[%clk
0:02:49.4]} 4. dxe4 {[%clk 0:02:53.4]} 4... Qxd1+ {[%clk 0:02:46.2]} 5. Kxd1
{[%clk 0:02:54.3]} 5... g6 {[%clk 0:02:45.5]} 6. c3 {[%clk 0:02:51.1]} 6... Bh6
{[%clk 0:02:37.7]} 7. Bxh6 {[%clk 0:02:49.2]} 7... Nxh6 {[%clk 0:02:37.1]} 8. h3
{[%clk 0:02:49.5]} 8... f6 {[%clk 0:02:34.8]} 9. Nbd2 {[%clk 0:02:50.4]} 9...
Nf7 {[%clk 0:02:34.4]} 10. Kc2 {[%clk 0:02:49.7]} 10... e5 {[%clk 0:02:34]} 11.
a4 {[%clk 0:02:49.3]} 11... Be6 {[%clk 0:02:31.1]} 12. Bc4 {[%clk 0:02:48]}
12... Ke7 {[%clk 0:02:30.3]} 13. Bxe6 {[%clk 0:02:46.1]} 13... Kxe6 {[%clk
0:02:30.2]} 14. a5 {[%clk 0:02:44.8]} 14... a6 {[%clk 0:02:25.9]} 15. Nb3 {[%clk
0:02:42.7]} 15... Nd7 {[%clk 0:02:17.1]} 16. Rhd1 {[%clk 0:02:39.8]} 16... Rhd8
{[%clk 0:02:02.1]} 17. Rd2 {[%clk 0:02:33.1]} 17... Ke7 {[%clk 0:02:02.4]} 18.
Rad1 {[%clk 0:02:31.3]} 18... Rab8 {[%clk 0:01:46.1]} 19. Rd3 {[%clk 0:02:25]}
19... Nf8 {[%clk 0:01:36.1]} 20. Rxd8 {[%clk 0:02:15.2]} 20... Rxd8 {[%clk
0:01:34.3]} 21. Rxd8 {[%clk 0:02:15.3]} 21... Nxd8 {[%clk 0:01:34]} 22. Nc5
{[%clk 0:02:15.7]} 22... Nfe6 {[%clk 0:01:33.8]} 23. Nd3 {[%clk 0:02:13.6]}
23... Nf7 {[%clk 0:01:31.8]} 24. Nd2 {[%clk 0:02:11.9]} 24... Nd6 {[%clk
0:01:31.1]} 25. f3 {[%clk 0:02:09.1]} 25... Kd7 {[%clk 0:01:29]} 26. b4 {[%clk
0:02:06.9]} 26... Nb5 {[%clk 0:01:16.7]} 27. Nb3 {[%clk 0:02:03.5]} 27... Nd6
{[%clk 0:01:14.7]} 28. Ndc5+ {[%clk 0:02:01.3]} 28... Nxc5 {[%clk 0:01:13.6]}
29. Nxc5+ {[%clk 0:02:02.2]} 29... Ke7 {[%clk 0:01:11.2]} 30. Kd3 {[%clk
0:02:03.1]} 30... Kf7 {[%clk 0:01:04.3]} 31. g3 {[%clk 0:01:59]} 31... Ke7
{[%clk 0:01:02.3]} 32. f4 {[%clk 0:01:58.9]} 32... h6 {[%clk 0:00:55.4]} 33. Na4
{[%clk 0:01:55.8]} 33... g5 {[%clk 0:00:46.1]} 34. f5 {[%clk 0:01:54.8]} 34...
h5 {[%clk 0:00:43.8]} 35. Nb6 {[%clk 0:01:51.8]} 35... Kf7 {[%clk 0:00:41.3]}
36. Nc4 {[%clk 0:01:49.9]} 36... Ke7 {[%clk 0:00:40.3]} 37. Nxd6 {[%clk
0:01:39.1]} 37... Kxd6 {[%clk 0:00:40]} 38. Kc4 {[%clk 0:01:37.9]} 38... Kd7
{[%clk 0:00:37.7]} 39. Kc5 {[%clk 0:01:36.8]} 39... Kc7 {[%clk 0:00:37.2]} 40.
c4 {[%clk 0:01:30.8]} 40... g4 {[%clk 0:00:29.2]} 41. h4 {[%clk 0:01:29]} 41...
Kd7 {[%clk 0:00:27.5]} 42. Kb6 {[%clk 0:01:28.4]} 42... Kc8 {[%clk 0:00:25.2]}
43. b5 {[%clk 0:01:15.7]} 43... cxb5 {[%clk 0:00:23.8]} 44. cxb5 {[%clk
0:01:16.6]} 44... axb5 {[%clk 0:00:23.7]} 45. Kxb5 {[%clk 0:01:17.1]} 45... Kd7
{[%clk 0:00:20.1]} 46. Kc5 {[%clk 0:01:16.2]} 46... Kc7 {[%clk 0:00:19.6]} 47.
Kb5 {[%clk 0:01:14.8]} 47... Kd7 {[%clk 0:00:19.3]} 48. Kb6 {[%clk 0:01:14.6]}
48... Kc8 {[%clk 0:00:19]} 49. Ka7 {[%clk 0:01:07.8]} 49... Kc7 {[%clk
0:00:19.1]} 50. Ka8 {[%clk 0:01:07.8]} 50... Kc8 {[%clk 0:00:19.3]} 51. Ka7
{[%clk 0:01:07.8]} 51... Kc7 {[%clk 0:00:19.7]} 52. Ka8 {[%clk 0:00:54.4]} 52...
Kc8 {[%clk 0:00:19.8]} 53. Ka7 {[%clk 0:00:54.6]} 1/2-1/2

[Event "*** Titled Tuesday Blitz"]
[Site "Chess.com"]
[Date "2021.04.06"]
[Round "1"]
[White "Dinamo3"]
[Black "Sibelephant"]
[Result "0-1"]
[WhiteElo "2476"]
[BlackElo "3116"]
[TimeControl "180+1"]
[EndTime "10:06:55 PDT"]
[Termination "Sibelephant won by checkmate"]

1. e4 {[%clk 0:03:00.9]} 1... c5 {[%clk 0:02:57.1]} 2. Nf3 {[%clk 0:03:01]} 2...
d6 {[%clk 0:02:56.7]} 3. d4 {[%clk 0:03:01.2]} 3... cxd4 {[%clk 0:02:57.1]} 4.
Nxd4 {[%clk 0:03:02.1]} 4... Nf6 {[%clk 0:02:57.5]} 5. Nc3 {[%clk 0:03:02.6]}
5... Bd7 {[%clk 0:02:57.9]} 6. Be2 {[%clk 0:02:58.5]} 6... Nc6 {[%clk
0:02:56.8]} 7. O-O {[%clk 0:02:58.2]} 7... g6 {[%clk 0:02:55.5]} 8. Be3 {[%clk
0:02:57.9]} 8... Bg7 {[%clk 0:02:55.6]} 9. Kh1 {[%clk 0:02:31.6]} 9... O-O
{[%clk 0:02:54.7]} 10. f4 {[%clk 0:02:31.7]} 10... Rc8 {[%clk 0:02:47.2]} 11.
Nb3 {[%clk 0:02:27.6]} 11... a6 {[%clk 0:02:39.7]} 12. Qd2 {[%clk 0:02:24.2]}
12... b5 {[%clk 0:02:37.2]} 13. Bf3 {[%clk 0:02:15.5]} 13... Bg4 {[%clk
0:02:11.4]} 14. Bxg4 {[%clk 0:01:12.8]} 14... Nxg4 {[%clk 0:02:10.9]} 15. Bg1
{[%clk 0:01:13.2]} 15... Na5 {[%clk 0:02:04.7]} 16. Nxa5 {[%clk 0:01:05.7]}
16... Qxa5 {[%clk 0:02:04.6]} 17. Bd4 {[%clk 0:01:05.9]} 17... Bxd4 {[%clk
0:01:47]} 18. Qxd4 {[%clk 0:01:05.8]} 18... Rc4 {[%clk 0:01:47.6]} 19. Qd3
{[%clk 0:01:00.9]} 19... Qb6 {[%clk 0:01:41.3]} 20. Qe2 {[%clk 0:00:56.3]} 20...
Nf6 {[%clk 0:01:33.1]} 21. e5 {[%clk 0:00:56.4]} 21... dxe5 {[%clk 0:01:33.2]}
22. fxe5 {[%clk 0:00:57.3]} 22... Nh5 {[%clk 0:01:33.8]} 23. Rad1 {[%clk
0:00:47.1]} 23... Qe6 {[%clk 0:01:01.4]} 24. Nd5 {[%clk 0:00:39.3]} 24... Rc5
{[%clk 0:00:57.8]} 25. Qe4 {[%clk 0:00:30]} 25... f5 {[%clk 0:00:57.8]} 26. Qd4
{[%clk 0:00:25.4]} 26... Rxc2 {[%clk 0:00:57.6]} 27. Qb4 {[%clk 0:00:21.1]}
27... Rf7 {[%clk 0:00:52.7]} 28. Rfe1 {[%clk 0:00:20]} 28... f4 {[%clk
0:00:46.3]} 29. Qb3 {[%clk 0:00:18.7]} 29... Rc4 {[%clk 0:00:43.9]} 30. Qd3
{[%clk 0:00:15.9]} 30... f3 {[%clk 0:00:31]} 31. gxf3 {[%clk 0:00:15.5]} 31...
Rh4 {[%clk 0:00:28.5]} 32. Rg1 {[%clk 0:00:15.6]} 32... Qh3 {[%clk 0:00:26.1]}
33. e6 {[%clk 0:00:06]} 33... Qxh2# {[%clk 0:00:25.7]} 0-1

[Event "*** Titled Tuesday Blitz"]
[Site "Chess.com"]
[Date "2021.04.06"]
[Round "1"]
[White "annacramling"]
[Black "jonaszmb"]
[Result "0-1"]
[WhiteElo "2062"]
[BlackElo "2500"]
[TimeControl "180+1"]
[EndTime "10:06:56 PDT"]
[Termination "jonaszmb won by resignation"]

1. d4 {[%clk 0:03:00.9]} 1... d5 {[%clk 0:02:59]} 2. c4 {[%clk 0:03:00.9]} 2...
Bf5 {[%clk 0:02:59]} 3. Nc3 {[%clk 0:02:55.2]} 3... e6 {[%clk 0:02:59.2]} 4.
cxd5 {[%clk 0:02:48.1]} 4... exd5 {[%clk 0:03:00.1]} 5. Qb3 {[%clk 0:02:48.3]}
5... Nc6 {[%clk 0:02:59.4]} 6. Qxd5 {[%clk 0:01:44.2]} 6... Nxd4 {[%clk
0:02:50.9]} 7. e4 {[%clk 0:01:24.1]} 7... Nc2+ {[%clk 0:02:47]} 8. Kd1 {[%clk
0:01:19]} 8... Nxa1 {[%clk 0:02:35.4]} 9. exf5 {[%clk 0:01:16.3]} 9... Qxd5+
{[%clk 0:02:35.4]} 10. Nxd5 {[%clk 0:01:12.5]} 10... O-O-O {[%clk 0:02:35.6]}
11. Bc4 {[%clk 0:01:07.2]} 11... c6 {[%clk 0:02:21.8]} 12. Bg5 {[%clk
0:01:02.5]} 12... f6 {[%clk 0:02:07.9]} 13. Bd2 {[%clk 0:00:54.2]} 13... cxd5
{[%clk 0:02:07.4]} 14. Bd3 {[%clk 0:00:53]} 14... Bc5 {[%clk 0:02:00.8]} 15. Nh3
{[%clk 0:00:50.7]} 15... Nh6 {[%clk 0:01:48.1]} 16. Ke2 {[%clk 0:00:34.5]} 16...
Rhe8+ {[%clk 0:01:47.4]} 17. Kf3 {[%clk 0:00:34.4]} 17... Nf7 {[%clk 0:01:45.9]}
18. Bf4 {[%clk 0:00:28.2]} 18... Ne5+ {[%clk 0:01:43.9]} 19. Bxe5 {[%clk
0:00:27.1]} 19... fxe5 {[%clk 0:01:44.8]} 20. Bb5 {[%clk 0:00:27.2]} 20... Nc2
{[%clk 0:01:39.3]} 21. Bxe8 {[%clk 0:00:20.7]} 21... Nd4+ {[%clk 0:01:39.3]} 22.
Kg4 {[%clk 0:00:18.7]} 22... Rxe8 {[%clk 0:00:41]} 23. Rc1 {[%clk 0:00:18.2]}
23... b6 {[%clk 0:00:41.6]} 24. b4 {[%clk 0:00:18.2]} 24... Kd7 {[%clk 0:00:42]}
25. bxc5 {[%clk 0:00:18]} 25... Rc8 {[%clk 0:00:42]} 26. Re1 {[%clk 0:00:11.7]}
26... bxc5 {[%clk 0:00:38]} 27. Rxe5 {[%clk 0:00:11.1]} 27... Kd6 {[%clk
0:00:38.6]} 28. Re3 {[%clk 0:00:08.2]} 28... c4 {[%clk 0:00:38.8]} 29. Nf4
{[%clk 0:00:07.2]} 29... c3 {[%clk 0:00:35.6]} 30. Nd3 {[%clk 0:00:05.2]} 30...
c2 {[%clk 0:00:33.8]} 31. Nc1 {[%clk 0:00:05.5]} 31... Rc4 {[%clk 0:00:27.4]}
32. Ra3 {[%clk 0:00:05.2]} 32... Nb5+ {[%clk 0:00:26.8]} 0-1